Workbook

Sheet 一志愿
A1: 中国石油大学（北京）经济管理学院2022MBA一志愿拟录取名单
A2: 序号 | B2: 考生编号 | C2: 姓名 | D2: 拟录取专业 | E2: 管理类综合 | F2: 英语二 | G2: 初试总分 | H2: 专业综合面试成绩 | I2: 英语面试成绩 | J2: 政治笔试成绩 | K2: 复试总成绩 | L2: 录取总成绩 | M2: 是否拟录取 | N2: 学习方式
A3: 1 | B3: 114142137144290 | C3: 李祥慧 | D3: 工商管理 | E3: 148 | F3: 89 | G3: 237 | H3: 83.03 | I3: 92.76 | J3: 90.00 | K3: =H3*70%+I3*25%+J3*5% -> 85.81 | L3: =G3/300*100*70%+K3*30% -> 81.04 | M3: 是 | N3: 全日制
A4: 2 | B4: 114142152055395 | C4: 杨芳 | D4: 工商管理 | E4: 162 | F4: 67 | G4: 229 | H4: 80.87 | I4: 67.02 | J4: 87.50 | K4: =H4*70%+I4*25%+J4*5% -> 77.74 | L4: =G4/300*100*70%+K4*30% -> 76.76 | M4: 是 | N4: 全日制
A5: 3 | B5: 114142123313362 | C5: 张岸 | D5: 工商管理 | E5: 149 | F5: 79 | G5: 228 | H5: 86.32 | I5: 89.41 | J5: 85.50 | K5: 87.05 | L5: 79.32 | M5: 是 | N5: 全日制
A6: 4 | B6: 114142111640833 | C6: 李昊 | D6: 工商管理 | E6: 149 | F6: 75 | G6: 224 | H6: 84.79 | I6: 84.91 | J6: 78.00 | K6: 84.48 | L6: 77.61 | M6: 是 | N6: 全日制
A7: 5 | B7: 114142137013725 | C7: 李梅 | D7: 工商管理 | E7: 143 | F7: 78 | G7: 221 | H7: 87.32 | I7: 86.47 | J7: 85.50 | K7: 87.02 | L7: 77.67 | M7: 是 | N7: 非全日制
A8: 6 | B8: 114142111640826 | C8: 初丽辉 | D8: 工商管理 | E8: 149 | F8: 69 | G8: 218 | H8: 86.26 | I8: 89.41 | J8: 77.50 | K8: 86.61 | L8: 76.85 | M8: 是 | N8: 非全日制
A9: 7 | B9: 114142152055393 | C9: 顾文渊 | D9: 工商管理 | E9: 157 | F9: 61 | G9: 218 | H9: 86.89 | I9: 80.08 | J9: 80.50 | K9: 84.87 | L9: 76.33 | M9: 是 | N9: 非全日制
A10: 8 | B10: 114142114132703 | C10: 赵前程 | D10: 工商管理 | E10: 137 | F10: 81 | G10: 218 | H10: 79.02 | I10: 90.74 | J10: 88.50 | K10: 82.43 | L10: 75.59 | M10: 是 | N10: 全日制
A11: 9 | B11: 114142111640880 | C11: 顿耀军 | D11: 工商管理 | E11: 141 | F11: 76 | G11: 217 | H11: 84.75 | I11: 84.26 | J11: 80.00 | K11: 84.39 | L11: 75.95 | M11: 是 | N11: 非全日制
A12: 10 | B12: 114142137053997 | C12: 王喆 | D12: 工商管理 | E12: 141 | F12: 75 | G12: 216 | H12: 82.15 | I12: 85.78 | J12: 84.50 | K12: 83.17 | L12: 75.35 | M12: 是 | N12: 全日制
A13: 11 | B13: 114142121052899 | C13: 杨倚雪 | D13: 工商管理 | E13: 139 | F13: 77 | G13: 216 | H13: 83.09 | I13: 91.92 | J13: 93.50 | K13: 85.82 | L13: =G13/300*100*70%+K13*30% -> 76.15 | M13: 是 | N13: 全日制
A14: 12 | B14: 114142112041972 | C14: 张铮 | D14: 工商管理 | E14: 133 | F14: 82 | G14: 215 | H14: 83.32 | I14: 90.85 | J14: 83.00 | K14: 85.19 | L14: 75.72 | M14: 是 | N14: 全日制
A15: 13 | B15: 114142114122697 | C15: 杨敏 | D15: 工商管理 | E15: 135 | F15: 78 | G15: 213 | H15: 71.49 | I15: 91.16 | J15: 80.50 | K15: 76.86 | L15: 72.76 | M15: 是 | N15: 全日制
A16: 14 | B16: 114142123323365 | C16: 毛瀚泽 | D16: 工商管理 | E16: 143 | F16: 69 | G16: 212 | H16: 84.48 | I16: 75.01 | J16: 77.00 | K16: 81.74 | L16: 73.99 | M16: 是 | N16: 全日制
A17: 15 | B17: 114142113022072 | C17: 刘依然 | D17: 工商管理 | E17: 132 | F17: 79 | G17: 211 | H17: 81.65 | I17: 84.12 | J17: 83.00 | K17: 82.34 | L17: 73.93 | M17: 是 | N17: 全日制
A18: 16 | B18: 114142111640697 | C18: 刘子琪 | D18: 工商管理 | E18: 140 | F18: 71 | G18: 211 | H18: 83.76 | I18: 86.39 | J18: 88.50 | K18: 84.66 | L18: 74.63 | M18: 是 | N18: 全日制
A19: 17 | B19: 114142123283352 | C19: 孙博雅 | D19: 工商管理 | E19: 130 | F19: 81 | G19: 211 | H19: 89.78 | I19: 97.93 | J19: 84.00 | K19: 91.53 | L19: 76.69 | M19: 是 | N19: 非全日制
A20: 18 | B20: 114142112041955 | C20: 王卓青 | D20: 工商管理 | E20: 138 | F20: 73 | G20: 211 | H20: 78.21 | I20: 84.69 | J20: 86.50 | K20: 80.24 | L20: 73.31 | M20: 是 | N20: 全日制
A21: 19 | B21: 114142114242785 | C21: 訾晴雯 | D21: 工商管理 | E21: 135 | F21: 76 | G21: 211 | H21: 79.65 | I21: 88.56 | J21: 86.50 | K21: 82.22 | L21: 73.90 | M21: 是 | N21: 全日制
A22: 20 | B22: 114142111640688 | C22: 荆璐 | D22: 工商管理 | E22: 135 | F22: 75 | G22: 210 | H22: 91.24 | I22: 84.60 | J22: 81.50 | K22: 89.09 | L22: 75.73 | M22: 是 | N22: 全日制
A23: 21 | B23: 114142137053993 | C23: 李善婷 | D23: 工商管理 | E23: 131 | F23: 78 | G23: 209 | H23: 85.31 | I23: 82.15 | J23: 81.50 | K23: 84.33 | L23: 74.07 | M23: 是 | N23: 全日制
A24: 22 | B24: 114142135083663 | C24: 张巧玫 | D24: 工商管理 | E24: 132 | F24: 76 | G24: 208 | H24: 89.05 | I24: 86.03 | J24: 88.00 | K24: 88.24 | L24: 75.01 | M24: 是 | N24: 全日制
A25: 23 | B25: 114142113022067 | C25: 曹中尧 | D25: 工商管理 | E25: 139 | F25: 68 | G25: 207 | H25: 82.22 | I25: 84.60 | J25: 85.00 | K25: 82.95 | L25: 73.19 | M25: 是 | N25: 全日制
A26: 24 | B26: 114142111640786 | C26: 李东阳 | D26: 工商管理 | E26: 120 | F26: 87 | G26: 207 | H26: 87.88 | I26: 86.97 | J26: 84.50 | K26: 87.48 | L26: 74.54 | M26: 是 | N26: 非全日制
A27: 25 | B27: 114142112041948 | C27: 宋新宇 | D27: 工商管理 | E27: 137 | F27: 70 | G27: 207 | H27: 85.18 | I27: 86.19 | J27: 78.00 | K27: 85.07 | L27: 73.82 | M27: 是 | N27: 全日制
A28: 26 | B28: 114142142304932 | C28: 瞿梦妮 | D28: 工商管理 | E28: 131 | F28: 75 | G28: 206 | H28: 81.84 | I28: 79.11 | J28: 80.50 | K28: 81.09 | L28: 72.39 | M28: 是 | N28: 全日制
A29: 27 | B29: 114142111640456 | C29: 王雪辰 | D29: 工商管理 | E29: 128 | F29: 78 | G29: 206 | H29: 90.57 | I29: 89.41 | J29: 84.50 | K29: 89.98 | L29: 75.06 | M29: 是 | N29: 非全日制
A30: 28 | B30: 114142111640462 | C30: 徐欣波 | D30: 工商管理 | E30: 133 | F30: 72 | G30: 205 | H30: 85.01 | I30: 82.27 | J30: 83.50 | K30: 84.25 | L30: 73.11 | M30: 是 | N30: 非全日制
A31: 29 | B31: 114142122073161 | C31: 马跃 | D31: 工商管理 | E31: 146 | F31: 58 | G31: 204 | H31: 77.77 | I31: 73.03 | J31: 78.50 | K31: 76.62 | L31: 70.59 | M31: 是 | N31: 全日制
A32: 30 | B32: 114142114202745 | C32: 赵逸翔 | D32: 工商管理 | E32: 147 | F32: 57 | G32: 204 | H32: 81.88 | I32: 88.93 | J32: 81.50 | K32: 83.63 | L32: 72.69 | M32: 是 | N32: 全日制
A33: 31 | B33: 114142112041925 | C33: 焦健 | D33: 工商管理 | E33: 124 | F33: 79 | G33: 203 | H33: 85.69 | I33: 91.24 | J33: 77.00 | K33: 86.64 | L33: 73.36 | M33: 是 | N33: 全日制
A34: 32 | B34: 114142114102668 | C34: 梁晓萌 | D34: 工商管理 | E34: 126 | F34: 77 | G34: 203 | H34: 81.30 | I34: 82.20 | J34: 88.00 | K34: 81.86 | L34: 71.93 | M34: 是 | N34: 全日制
A35: 33 | B35: 114142137164360 | C35: 付华鹏 | D35: 工商管理 | E35: 123 | F35: 79 | G35: 202 | H35: 84.97 | I35: 80.08 | J35: 85.00 | K35: 83.75 | L35: 72.26 | M35: 是 | N35: 全日制
A36: 34 | B36: 114142137094195 | C36: 盛玉雪 | D36: 工商管理 | E36: 134 | F36: 68 | G36: 202 | H36: 83.03 | I36: 82.40 | J36: 89.50 | K36: =H36*70%+I36*25%+J36*5% -> 83.20 | L36: =G36/300*100*70%+K36*30% -> 72.09 | M36: 是 | N36: 全日制
A37: 35 | B37: 114142113102335 | C37: 田瀚宇 | D37: 工商管理 | E37: 142 | F37: 60 | G37: 202 | H37: 74.81 | I37: 79.70 | J37: 82.00 | K37: 76.40 | L37: 70.05 | M37: 是 | N37: 非全日制
A38: 36 | B38: 114142121393097 | C38: 刘力豪 | D38: 工商管理 | E38: 119 | F38: 82 | G38: 201 | H38: 88.41 | I38: 92.22 | J38: 83.50 | K38: 89.12 | L38: 73.64 | M38: 是 | N38: 全日制
A39: 37 | B39: 114142111640522 | C39: 牛春光 | D39: 工商管理 | E39: 146 | F39: 55 | G39: 201 | H39: 81.91 | I39: 81.54 | J39: 85.50 | K39: 82.00 | L39: 71.50 | M39: 是 | N39: 非全日制
A40: 38 | B40: 114142164015849 | C40: 徐雪峰 | D40: 工商管理 | E40: 125 | F40: 76 | G40: 201 | H40: 91.02 | I40: 90.22 | J40: 80.50 | K40: 90.29 | L40: 73.99 | M40: 是 | N40: 全日制
A41: 39 | B41: 114142137013724 | C41: 李健源 | D41: 工商管理 | E41: 128 | F41: 72 | G41: 200 | H41: 89.78 | I41: 85.95 | J41: 80.50 | K41: 88.36 | L41: 73.17 | M41: 是 | N41: 全日制
A42: 40 | B42: 114142111640741 | C42: 刘慈 | D42: 工商管理 | E42: 134 | F42: 66 | G42: 200 | H42: 87.34 | I42: 84.47 | J42: 84.00 | K42: 86.45 | L42: 72.60 | M42: 是 | N42: 非全日制
A43: 41 | B43: 114142113092294 | C43: 张洪峰 | D43: 工商管理 | E43: 119 | F43: 81 | G43: 200 | H43: 89.45 | I43: 92.29 | J43: 87.50 | K43: 90.06 | L43: 73.69 | M43: 是 | N43: 全日制
A44: 42 | B44: 114142137033935 | C44: 钟骏 | D44: 工商管理 | E44: 126 | F44: 74 | G44: 200 | H44: 86.44 | I44: 82.25 | J44: 76.50 | K44: 84.90 | L44: 72.14 | M44: 是 | N44: 非全日制
A45: 43 | B45: 114142141024442 | C45: 陈双红 | D45: 工商管理 | E45: 127 | F45: 71 | G45: 198 | H45: 79.31 | I45: 81.54 | J45: 86.50 | K45: 80.23 | L45: 70.27 | M45: 是 | N45: 全日制
A46: 44 | B46: 114142121123029 | C46: 李佶念 | D46: 工商管理 | E46: 137 | F46: 61 | G46: 198 | H46: 0.00 | I46: 0.00 | J46: 0.00 | K46: 0.00 | L46: 46.20 | M46: 放弃复试 | N46: 全日制
A47: 45 | B47: 114142113092288 | C47: 沈楷川 | D47: 工商管理 | E47: 141 | F47: 56 | G47: 197 | H47: 84.66 | I47: 80.99 | J47: 80.50 | K47: 83.54 | L47: 71.03 | M47: 是 | N47: 全日制
A48: 46 | B48: 114142165055942 | C48: 张方正 | D48: 工商管理 | E48: 131 | F48: 66 | G48: 197 | H48: 78.36 | I48: 93.45 | J48: 76.00 | K48: 82.02 | L48: 70.57 | M48: 是 | N48: 全日制
A49: 47 | B49: 114142131173380 | C49: 郝子建 | D49: 工商管理 | E49: 121 | F49: 75 | G49: 196 | H49: 87.63 | I49: 72.18 | J49: 86.50 | K49: 83.71 | L49: 70.85 | M49: 是 | N49: 非全日制
A50: 48 | B50: 114142121513127 | C50: 马畅 | D50: 工商管理 | E50: 122 | F50: 74 | G50: 196 | H50: 87.56 | I50: 83.16 | J50: 87.50 | K50: 86.46 | L50: 71.67 | M50: 是 | N50: 全日制
A51: 49 | B51: 114142137134256 | C51: 徐希昊 | D51: 工商管理 | E51: 140 | F51: 56 | G51: 196 | H51: 80.34 | I51: 76.06 | J51: 80.00 | K51: 79.25 | L51: 69.51 | M51: 是 | N51: 全日制
A52: 50 | B52: 114142141154570 | C52: 于晨 | D52: 工商管理 | E52: 119 | F52: 77 | G52: 196 | H52: 84.56 | I52: 80.72 | J52: 91.00 | K52: 83.92 | L52: 70.91 | M52: 是 | N52: 全日制
A53: 51 | B53: 114142113112389 | C53: 高君蕙 | D53: 工商管理 | E53: 127 | F53: 68 | G53: 195 | H53: 83.03 | I53: 78.44 | J53: 84.50 | K53: 81.96 | L53: 70.09 | M53: 是 | N53: 全日制
A54: 52 | B54: 114142112041940 | C54: 刘泽珊 | D54: 工商管理 | E54: 135 | F54: 60 | G54: 195 | H54: 0.00 | I54: 0.00 | J54: 0.00 | K54: 0.00 | L54: 45.50 | M54: 放弃复试 | N54: 全日制
A55: 53 | B55: 114142122063150 | C55: 王超然 | D55: 工商管理 | E55: 144 | F55: 51 | G55: 195 | H55: 84.56 | I55: 82.14 | J55: 85.50 | K55: 84.01 | L55: 70.70 | M55: 是 | N55: 全日制
A56: 54 | B56: 114142141094516 | C56: 王艳青 | D56: 工商管理 | E56: 140 | F56: 55 | G56: 195 | H56: 81.65 | I56: 79.91 | J56: 88.50 | K56: 81.56 | L56: 69.97 | M56: 是 | N56: 全日制
A57: 55 | B57: 114142111640494 | C57: 张鹤檬 | D57: 工商管理 | E57: 126 | F57: 69 | G57: 195 | H57: 77.99 | I57: 86.47 | J57: 84.50 | K57: 80.43 | L57: 69.63 | M57: 是 | N57: 全日制
A58: 56 | B58: 114142111640432 | C58: 韩钰 | D58: 工商管理 | E58: 130 | F58: 64 | G58: 194 | H58: 77.80 | I58: 85.47 | J58: 88.50 | K58: 80.25 | L58: 69.34 | M58: 是 | N58: 非全日制
A59: 57 | B59: 114142112041928 | C59: 李国艳 | D59: 工商管理 | E59: 138 | F59: 56 | G59: 194 | H59: 86.33 | I59: 67.02 | J59: 82.00 | K59: 81.29 | L59: 69.65 | M59: 是 | N59: 非全日制
A60: 58 | B60: 114142144115087 | C60: 马春阳 | D60: 工商管理 | E60: 125 | F60: 69 | G60: 194 | H60: 86.59 | I60: 84.94 | J60: 90.00 | K60: 86.35 | L60: 71.17 | M60: 是 | N60: 全日制
A61: 59 | B61: 114142111640618 | C61: 陈亚川 | D61: 工商管理 | E61: 132 | F61: 61 | G61: 193 | H61: 83.09 | I61: 80.69 | J61: 86.50 | K61: 82.66 | L61: 69.83 | M61: 是 | N61: 非全日制
A62: 60 | B62: 114142113112391 | C62: 李洪岭 | D62: 工商管理 | E62: 127 | F62: 66 | G62: 193 | H62: 80.27 | I62: 80.08 | J62: 78.00 | K62: 80.11 | L62: 69.07 | M62: 是 | N62: 全日制
A63: 61 | B63: 114142134013532 | C63: 束道炳 | D63: 工商管理 | E63: 114 | F63: 79 | G63: 193 | H63: 85.32 | I63: 89.08 | J63: 80.50 | K63: 86.02 | L63: 70.84 | M63: 是 | N63: 全日制
A64: 62 | B64: 114142113062236 | C64: 王宁 | D64: 工商管理 | E64: 127 | F64: 66 | G64: 193 | H64: 85.61 | I64: 90.74 | J64: 88.00 | K64: 87.01 | L64: 71.14 | M64: 是 | N64: 全日制
A65: 63 | B65: 114142111640898 | C65: 许康 | D65: 工商管理 | E65: 131 | F65: 62 | G65: 193 | H65: 78.88 | I65: 67.18 | J65: 81.50 | K65: 76.09 | L65: 67.86 | M65: 是 | N65: 非全日制
A66: 64 | B66: 114142111640507 | C66: 张英杰 | D66: 工商管理 | E66: 125 | F66: 68 | G66: 193 | H66: 88.87 | I66: 83.70 | J66: 90.50 | K66: 87.66 | L66: 71.33 | M66: 是 | N66: 全日制
A67: 65 | B67: 114142111640501 | C67: 李世杰 | D67: 工商管理 | E67: 120 | F67: 72 | G67: 192 | H67: 83.91 | I67: 77.28 | J67: 80.50 | K67: 82.09 | L67: 69.43 | M67: 是 | N67: 全日制
A68: 66 | B68: 114142141134536 | C68: 刘辉 | D68: 工商管理 | E68: 124 | F68: 68 | G68: 192 | H68: 84.92 | I68: 79.71 | J68: 86.50 | K68: =H68*70%+I68*25%+J68*5% -> 83.70 | L68: =G68/300*100*70%+K68*30% -> 69.91 | M68: 是 | N68: 全日制
A69: 67 | B69: 114142141124532 | C69: 任美好 | D69: 工商管理 | E69: 137 | F69: 55 | G69: 192 | H69: 85.45 | I69: 80.08 | J69: 86.00 | K69: 84.14 | L69: 70.04 | M69: 是 | N69: 全日制
A70: 68 | B70: 114142137033934 | C70: 张波 | D70: 工商管理 | E70: 126 | F70: 66 | G70: 192 | H70: 79.02 | I70: 83.85 | J70: 86.00 | K70: 80.58 | L70: 68.97 | M70: 是 | N70: 非全日制
A71: 69 | B71: 114142141104520 | C71: 张英杰 | D71: 工商管理 | E71: 133 | F71: 59 | G71: 192 | H71: 80.95 | I71: 76.65 | J71: 86.00 | K71: 80.13 | L71: 68.84 | M71: 是 | N71: 全日制
A72: 70 | B72: 114142111640874 | C72: 韩晓婧 | D72: 工商管理 | E72: 122 | F72: 69 | G72: 191 | H72: 81.67 | I72: 85.14 | J72: 86.50 | K72: 82.78 | L72: 69.40 | M72: 是 | N72: 全日制
A73: 71 | B73: 114142142354948 | C73: 靳力 | D73: 工商管理 | E73: 124 | F73: 67 | G73: 191 | H73: 84.97 | I73: 78.63 | J73: 85.50 | K73: 83.41 | L73: 69.59 | M73: 是 | N73: 非全日制
A74: 72 | B74: 114142111640947 | C74: 李骄杨 | D74: 工商管理 | E74: 118 | F74: 73 | G74: 191 | H74: 86.33 | I74: 82.49 | J74: 85.50 | K74: 85.33 | L74: 70.17 | M74: 是 | N74: 全日制
A75: 73 | B75: 114142134063565 | C75: 刘继晔 | D75: 工商管理 | E75: 128 | F75: 63 | G75: 191 | H75: 81.17 | I75: 88.64 | J75: 82.50 | K75: 83.10 | L75: 69.50 | M75: 是 | N75: 全日制
A76: 74 | B76: 114142137074101 | C76: 孙强 | D76: 工商管理 | E76: 130 | F76: 61 | G76: 191 | H76: 85.93 | I76: 71.35 | J76: 80.00 | K76: 81.99 | L76: 69.16 | M76: 是 | N76: 全日制
A77: 75 | B77: 114142113042171 | C77: 武天童 | D77: 工商管理 | E77: 126 | F77: 65 | G77: 191 | H77: 84.59 | I77: 94.66 | J77: 87.50 | K77: 87.26 | L77: 70.74 | M77: 是 | N77: 全日制
A78: 76 | B78: 114142123293359 | C78: 徐小童 | D78: 工商管理 | E78: 117 | F78: 74 | G78: 191 | H78: 93.98 | I78: 91.68 | J78: 89.00 | K78: 93.16 | L78: 72.51 | M78: 是 | N78: 全日制
A79: 77 | B79: 114142111640896 | C79: 陈振广 | D79: 工商管理 | E79: 124 | F79: 66 | G79: 190 | H79: 85.93 | I79: 80.25 | J79: 88.00 | K79: 84.62 | L79: 69.72 | M79: 是 | N79: 非全日制
A80: 78 | B80: 114142113192449 | C80: 李聪聪 | D80: 工商管理 | E80: 114 | F80: 76 | G80: 190 | H80: 84.22 | I80: 89.89 | J80: 85.50 | K80: 85.70 | L80: 70.04 | M80: 是 | N80: 全日制
A81: 79 | B81: 114142113092285 | C81: 刘洁凡 | D81: 工商管理 | E81: 116 | F81: 74 | G81: 190 | H81: 85.93 | I81: 84.94 | J81: 86.50 | K81: 85.71 | L81: 70.05 | M81: 是 | N81: 非全日制
A82: 80 | B82: 114142114102670 | C82: 王倩茹 | D82: 工商管理 | E82: 131 | F82: 59 | G82: 190 | H82: 73.45 | I82: 81.26 | J82: 87.50 | K82: 76.10 | L82: 67.16 | M82: 是 | N82: 全日制
A83: 81 | B83: 114142111640424 | C83: 宇文马宁 | D83: 工商管理 | E83: 126 | F83: 64 | G83: 190 | H83: 84.01 | I83: 84.29 | J83: 87.50 | K83: 84.25 | L83: 69.61 | M83: 是 | N83: 非全日制
A84: 82 | B84: 114142111640553 | C84: 张爱华 | D84: 工商管理 | E84: 118 | F84: 72 | G84: 190 | H84: 81.00 | I84: 91.93 | J84: 82.50 | K84: 83.81 | L84: 69.47 | M84: 是 | N84: 非全日制
A85: 83 | B85: 114142111640648 | C85: 白珍珍 | D85: 工商管理 | E85: 121 | F85: 68 | G85: 189 | H85: 83.99 | I85: 81.46 | J85: 89.50 | K85: 83.64 | L85: 69.19 | M85: 是 | N85: 全日制
A86: 84 | B86: 114142165066191 | C86: 褚建飞 | D86: 工商管理 | E86: 140 | F86: 49 | G86: 189 | H86: 84.73 | I86: 67.46 | J86: 81.50 | K86: 80.25 | L86: 68.18 | M86: 是 | N86: 非全日制
A87: 85 | B87: 114142122023130 | C87: 邱子琪 | D87: 工商管理 | E87: 133 | F87: 56 | G87: 189 | H87: 71.77 | I87: 72.18 | J87: 86.50 | K87: 72.61 | L87: 65.88 | M87: 是 | N87: 全日制
A88: 86 | B88: 114142113022066 | C88: 毕松杨 | D88: 工商管理 | E88: 131 | F88: 57 | G88: 188 | H88: 89.45 | I88: 88.56 | J88: 83.50 | K88: 88.93 | L88: 70.54 | M88: 是 | N88: 非全日制
A89: 87 | B89: 114142134123592 | C89: 陈晴晴 | D89: 工商管理 | E89: 127 | F89: 61 | G89: 188 | H89: 85.31 | I89: 80.05 | J89: 86.00 | K89: 84.03 | L89: 69.08 | M89: 是 | N89: 全日制
A90: 88 | B90: 114142113102322 | C90: 陈昱庆 | D90: 工商管理 | E90: 131 | F90: 57 | G90: 188 | H90: 79.02 | I90: 82.84 | J90: 86.00 | K90: 80.32 | L90: 67.96 | M90: 是 | N90: 全日制
A91: 89 | B91: 114142162105797 | C91: 崔国宇 | D91: 工商管理 | E91: 117 | F91: 71 | G91: 188 | H91: 84.01 | I91: 94.35 | J91: 88.50 | K91: 86.82 | L91: 69.91 | M91: 是 | N91: 全日制
A92: 90 | B92: 114142111640800 | C92: 姜天生 | D92: 工商管理 | E92: 107 | F92: 81 | G92: 188 | H92: 91.28 | I92: 91.42 | J92: 84.00 | K92: 90.95 | L92: 71.15 | M92: 是 | N92: 非全日制
A93: 91 | B93: 114142112041929 | C93: 李红伟 | D93: 工商管理 | E93: 110 | F93: 78 | G93: 188 | H93: 93.10 | I93: 92.80 | J93: 81.50 | K93: 92.44 | L93: 71.60 | M93: 是 | N93: 非全日制
A94: 92 | B94: 114142114102671 | C94: 武意珵 | D94: 工商管理 | E94: 139 | F94: 49 | G94: 188 | H94: 83.47 | I94: 77.66 | J94: 81.50 | K94: 81.92 | L94: 68.44 | M94: 是 | N94: 全日制
A95: 93 | B95: 114142141094517 | C95: 于月晖 | D95: 工商管理 | E95: 123 | F95: 65 | G95: 188 | H95: 83.89 | I95: 87.97 | J95: 86.00 | K95: 85.01 | L95: 69.37 | M95: 是 | N95: 全日制
A96: 94 | B96: 114142112041971 | C96: 张轩 | D96: 工商管理 | E96: 118 | F96: 70 | G96: 188 | H96: 82.64 | I96: 81.85 | J96: 89.50 | K96: 82.79 | L96: 68.70 | M96: 是 | N96: 全日制
A97: 95 | B97: 114142113022068 | C97: 邓若绮 | D97: 工商管理 | E97: 118 | F97: 69 | G97: 187 | H97: 90.74 | I97: 85.64 | J97: 80.00 | K97: 88.93 | L97: 70.31 | M97: 是 | N97: 非全日制
A98: 96 | B98: 114142111640781 | C98: 冯玮 | D98: 工商管理 | E98: 113 | F98: 74 | G98: 187 | H98: 81.73 | I98: 80.52 | J98: 78.00 | K98: 81.24 | L98: 68.01 | M98: 是 | N98: 非全日制
A99: 97 | B99: 114142134013529 | C99: 黄捷 | D99: 工商管理 | E99: 119 | F99: 68 | G99: 187 | H99: 86.29 | I99: 95.41 | J99: 81.50 | K99: 88.33 | L99: 70.13 | M99: 是 | N99: 全日制
A100: 98 | B100: 114142113022070 | C100: 贾丽丽 | D100: 工商管理 | E100: 124 | F100: 63 | G100: 187 | H100: 83.52 | I100: 84.45 | J100: 85.50 | K100: =H100*70%+I100*25%+J100*5% -> 83.85 | L100: =G100/300*100*70%+K100*30% -> 68.79 | M100: 是 | N100: 全日制
A101: 99 | B101: 114142164015848 | C101: 任彤彤 | D101: 工商管理 | E101: 113 | F101: 74 | G101: 187 | H101: 85.22 | I101: 91.81 | J101: 86.50 | K101: 86.94 | L101: 69.71 | M101: 是 | N101: 全日制
A102: 100 | B102: 114142132233464 | C102: 高欣欣 | D102: 工商管理 | E102: 124 | F102: 62 | G102: 186 | H102: 89.24 | I102: 87.49 | J102: 84.50 | K102: 88.56 | L102: 69.97 | M102: 是 | N102: 全日制
A103: 101 | B103: 114142113232460 | C103: 李维牵 | D103: 工商管理 | E103: 116 | F103: 70 | G103: 186 | H103: 89.05 | I103: 93.85 | J103: 86.00 | K103: 90.10 | L103: 70.43 | M103: 是 | N103: 非全日制
A104: 102 | B104: 114142141074486 | C104: 刘静懿 | D104: 工商管理 | E104: 120 | F104: 66 | G104: 186 | H104: 81.76 | I104: 78.13 | J104: 79.50 | K104: 80.74 | L104: 67.62 | M104: 是 | N104: 全日制
A105: 103 | B105: 114142121173069 | C105: 鲁文玉 | D105: 工商管理 | E105: 119 | F105: 67 | G105: 186 | H105: 92.18 | I105: 89.99 | J105: 87.00 | K105: 91.37 | L105: 70.81 | M105: 是 | N105: 非全日制
A106: 104 | B106: 114142111640994 | C106: 王露 | D106: 工商管理 | E106: 106 | F106: 80 | G106: 186 | H106: 86.45 | I106: 81.78 | J106: 86.50 | K106: 85.29 | L106: 68.99 | M106: 是 | N106: 非全日制
A107: 105 | B107: 114142111640426 | C107: 王宇航 | D107: 工商管理 | E107: 112 | F107: 74 | G107: 186 | H107: 89.90 | I107: 91.33 | J107: 81.50 | K107: 89.84 | L107: 70.35 | M107: 是 | N107: 非全日制
A108: 106 | B108: 114142122043144 | C108: 张丹阳 | D108: 工商管理 | E108: 128 | F108: 58 | G108: 186 | H108: 91.28 | I108: 80.42 | J108: 84.50 | K108: 88.23 | L108: 69.87 | M108: 是 | N108: 全日制
A109: 107 | B109: 114142111640455 | C109: 张晗 | D109: 工商管理 | E109: 127 | F109: 59 | G109: 186 | H109: 84.97 | I109: 87.36 | J109: 80.00 | K109: 85.32 | L109: 69.00 | M109: 是 | N109: 非全日制
A110: 108 | B110: 114142123323366 | C110: 邹萌 | D110: 工商管理 | E110: 120 | F110: 66 | G110: 186 | H110: 84.53 | I110: 86.64 | J110: 87.50 | K110: 85.21 | L110: 68.96 | M110: 是 | N110: 全日制
A111: 109 | B111: 114142111640607 | C111: 刘蓓蓓 | D111: 工商管理 | E111: 104 | F111: 81 | G111: 185 | H111: 83.76 | I111: 91.24 | J111: 81.50 | K111: 85.52 | L111: 68.82 | M111: 是 | N111: 非全日制
A112: 110 | B112: 114142111640602 | C112: 王玲玲 | D112: 工商管理 | E112: 141 | F112: 44 | G112: 185 | H112: 86.31 | I112: 69.35 | J112: 80.50 | K112: 81.78 | L112: 67.70 | M112: 是 | N112: 非全日制
A113: 111 | B113: 114142111640608 | C113: 魏莹 | D113: 工商管理 | E113: 112 | F113: 73 | G113: 185 | H113: 87.13 | I113: 89.30 | J113: 79.00 | K113: 87.27 | L113: 69.35 | M113: 是 | N113: 全日制
A114: 112 | B114: 114142137094196 | C114: 张显宁 | D114: 工商管理 | E114: 121 | F114: 64 | G114: 185 | H114: 76.19 | I114: 86.02 | J114: 88.00 | K114: 79.24 | L114: 66.94 | M114: 是 | N114: 全日制
A115: 113 | B115: 114142113052210 | C115: 陈思思 | D115: 工商管理 | E115: 112 | F115: 72 | G115: 184 | H115: 85.89 | I115: 84.12 | J115: 78.50 | K115: 85.08 | L115: 68.46 | M115: 是 | N115: 全日制
A116: 114 | B116: 114142144285102 | C116: 何燊华 | D116: 工商管理 | E116: 122 | F116: 62 | G116: 184 | H116: 91.91 | I116: 85.56 | J116: 84.00 | K116: 89.93 | L116: 69.91 | M116: 是 | N116: 全日制
A117: 115 | B117: 114142111640871 | C117: 李海涛 | D117: 工商管理 | E117: 116 | F117: 68 | G117: 184 | H117: 83.09 | I117: 74.05 | J117: 85.50 | K117: 80.95 | L117: 67.22 | M117: 是 | N117: 非全日制
A118: 116 | B118: 114142137023824 | C118: 唐怡 | D118: 工商管理 | E118: 111 | F118: 73 | G118: 184 | H118: 86.08 | I118: 74.05 | J118: 82.50 | K118: 82.89 | L118: 67.80 | M118: 是 | N118: 全日制
A119: 117 | B119: 114142111640680 | C119: 陶文超 | D119: 工商管理 | E119: 111 | F119: 73 | G119: 184 | H119: 76.19 | I119: 70.72 | J119: 85.50 | K119: 75.29 | L119: 65.52 | M119: 是 | N119: 全日制
A120: 118 | B120: 114142113102337 | C120: 王柔 | D120: 工商管理 | E120: 124 | F120: 60 | G120: 184 | H120: 82.80 | I120: 85.42 | J120: 87.00 | K120: 83.67 | L120: 68.03 | M120: 是 | N120: 非全日制
A121: 119 | B121: 114142137154324 | C121: 李贵东 | D121: 工商管理 | E121: 130 | F121: 53 | G121: 183 | H121: 76.87 | I121: 78.54 | J121: 86.00 | K121: 77.74 | L121: 66.02 | M121: 是 | N121: 全日制
A122: 120 | B122: 114142134083575 | C122: 刘雅清 | D122: 工商管理 | E122: 119 | F122: 64 | G122: 183 | H122: 85.55 | I122: 82.99 | J122: 87.50 | K122: 85.01 | L122: 68.20 | M122: 是 | N122: 全日制
A123: 121 | B123: 114142142484984 | C123: 罗帅 | D123: 工商管理 | E123: 107 | F123: 76 | G123: 183 | H123: 90.26 | I123: 89.32 | J123: 86.50 | K123: 89.84 | L123: 69.65 | M123: 是 | N123: 非全日制
A124: 122 | B124: 114142137033931 | C124: 王苑祺 | D124: 工商管理 | E124: 120 | F124: 63 | G124: 183 | H124: 82.56 | I124: 87.36 | J124: 88.00 | K124: 84.03 | L124: 67.91 | M124: 是 | N124: 全日制
A125: 123 | B125: 114142111640838 | C125: 李文航 | D125: 工商管理 | E125: 116 | F125: 66 | G125: 182 | H125: 88.34 | I125: 81.05 | J125: 88.50 | K125: 86.53 | L125: 68.42 | M125: 是 | N125: 非全日制
A126: 124 | B126: 114142111640436 | C126: 刘晓峥 | D126: 工商管理 | E126: 113 | F126: 69 | G126: 182 | H126: 79.31 | I126: 87.65 | J126: 87.50 | K126: 81.81 | L126: 67.01 | M126: 是 | N126: 非全日制
A127: 125 | B127: 114142113072248 | C127: 杨金媚 | D127: 工商管理 | E127: 110 | F127: 72 | G127: 182 | H127: 81.41 | I127: 82.88 | J127: 90.50 | K127: 82.23 | L127: 67.14 | M127: 是 | N127: 非全日制
A128: 126 | B128: 114142121072902 | C128: 朱博源 | D128: 工商管理 | E128: 109 | F128: 73 | G128: 182 | H128: 82.24 | I128: 79.30 | J128: 89.50 | K128: 81.87 | L128: 67.03 | M128: 是 | N128: 全日制
A129: 127 | B129: 114142111640591 | C129: 祝敏杰 | D129: 工商管理 | E129: 111 | F129: 71 | G129: 182 | H129: 80.49 | I129: 77.17 | J129: 81.50 | K129: 79.71 | L129: 66.38 | M129: 是 | N129: 非全日制
A130: 128 | B130: 114142111640459 | C130: 乔杰 | D130: 工商管理 | E130: 121 | F130: 60 | G130: 181 | H130: 87.13 | I130: 87.07 | J130: 85.50 | K130: 87.03 | L130: 68.34 | M130: 是 | N130: 非全日制
A131: 129 | B131: 114142111640977 | C131: 张心馨 | D131: 工商管理 | E131: 114 | F131: 67 | G131: 181 | H131: 80.35 | I131: 83.96 | J131: 89.00 | K131: 81.69 | L131: 66.74 | M131: 是 | N131: 全日制
A132: 130 | B132: 114142111640493 | C132: 仇晋 | D132: 工商管理 | E132: 105 | F132: 75 | G132: 180 | H132: 86.13 | I132: 78.68 | J132: 79.50 | K132: =H132*70%+I132*25%+J132*5% -> 83.94 | L132: =G132/300*100*70%+K132*30% -> 67.18 | M132: 是 | N132: 非全日制
A133: 131 | B133: 114142137023819 | C133: 刘耀文 | D133: 工商管理 | E133: 129 | F133: 51 | G133: 180 | H133: 86.79 | I133: 83.87 | J133: 82.00 | K133: 85.82 | L133: 67.74 | M133: 是 | N133: 全日制
A134: 132 | B134: 114142141184603 | C134: 吕林娜 | D134: 工商管理 | E134: 116 | F134: 64 | G134: 180 | H134: 81.39 | I134: 85.07 | J134: 82.00 | K134: 82.34 | L134: 66.70 | M134: 是 | N134: 全日制
A135: 133 | B135: 114142122063149 | C135: 贾德礼 | D135: 工商管理 | E135: 103 | F135: 76 | G135: 179 | H135: 85.01 | I135: 85.78 | J135: 92.00 | K135: 85.55 | L135: 67.43 | M135: 是 | N135: 全日制
A136: 134 | B136: 114142134013533 | C136: 童惠敏 | D136: 工商管理 | E136: 104 | F136: 75 | G136: 179 | H136: 85.61 | I136: 82.35 | J136: 86.50 | K136: 84.84 | L136: 67.22 | M136: 是 | N136: 全日制
A137: 135 | B137: 114142111640571 | C137: 王研 | D137: 工商管理 | E137: 124 | F137: 55 | G137: 179 | H137: 88.24 | I137: 87.60 | J137: 81.50 | K137: 87.74 | L137: 68.09 | M137: 是 | N137: 全日制
A138: 136 | B138: 114142111640888 | C138: 许一凡 | D138: 工商管理 | E138: 120 | F138: 59 | G138: 179 | H138: 86.26 | I138: 85.64 | J138: 88.00 | K138: 86.19 | L138: 67.63 | M138: 是 | N138: 全日制
A139: 137 | B139: 114142111640957 | C139: 张力丹 | D139: 工商管理 | E139: 103 | F139: 76 | G139: 179 | H139: 87.99 | I139: 85.56 | J139: 87.50 | K139: 87.36 | L139: 67.97 | M139: 是 | N139: 非全日制
A140: 138 | B140: 114142113192451 | C140: 张玲娟 | D140: 工商管理 | E140: 131 | F140: 48 | G140: 179 | H140: 69.25 | I140: 85.78 | J140: 86.00 | K140: 74.22 | L140: 64.03 | M140: 是 | N140: 非全日制
A141: 139 | B141: 114142113172429 | C141: 艾会荣 | D141: 工商管理 | E141: 109 | F141: 69 | G141: 178 | H141: 82.43 | I141: 82.02 | J141: 86.00 | K141: 82.51 | L141: 66.29 | M141: 是 | N141: 非全日制
A142: 140 | B142: 114142111640939 | C142: 李志勇 | D142: 工商管理 | E142: 112 | F142: 66 | G142: 178 | H142: 89.39 | I142: 81.85 | J142: 86.50 | K142: 87.36 | L142: 67.74 | M142: 是 | N142: 非全日制
A143: 141 | B143: 114142150225206 | C143: 穆乜凡 | D143: 工商管理 | E143: 97 | F143: 81 | G143: 178 | H143: 84.48 | I143: 79.73 | J143: 87.50 | K143: 83.44 | L143: 66.57 | M143: 是 | N143: 全日制
A144: 142 | B144: 114142111640702 | C144: 庄伟 | D144: 工商管理 | E144: 115 | F144: 63 | G144: 178 | H144: 85.03 | I144: 89.19 | J144: 90.00 | K144: 86.32 | L144: 67.43 | M144: 是 | N144: 非全日制
A145: 143 | B145: 114142111640818 | C145: 段洪婷 | D145: 工商管理 | E145: 110 | F145: 67 | G145: 177 | H145: 81.13 | I145: 75.01 | J145: 88.00 | K145: 79.95 | L145: 65.28 | M145: 是 | N145: 全日制
A146: 144 | B146: 114142111640598 | C146: 傅励 | D146: 工商管理 | E146: 115 | F146: 62 | G146: 177 | H146: 82.32 | I146: 77.66 | J146: 86.50 | K146: 81.36 | L146: 65.71 | M146: 是 | N146: 非全日制
A147: 145 | B147: 114142111640464 | C147: 戈雷 | D147: 工商管理 | E147: 116 | F147: 61 | G147: 177 | H147: 85.81 | I147: 89.19 | J147: 81.50 | K147: 86.44 | L147: 67.23 | M147: 是 | N147: 非全日制
A148: 146 | B148: 114142113102330 | C148: 刘冀虹 | D148: 工商管理 | E148: 128 | F148: 49 | G148: 177 | H148: 77.11 | I148: 67.41 | J148: 86.00 | K148: 75.13 | L148: 63.84 | M148: 是 | N148: 非全日制
A149: 147 | B149: 114142144105085 | C149: 沈奕 | D149: 工商管理 | E149: 119 | F149: 58 | G149: 177 | H149: 89.30 | I149: 80.72 | J149: 77.00 | K149: 86.54 | L149: 67.26 | M149: 是 | N149: 全日制
A150: 148 | B150: 114142111640430 | C150: 张潮 | D150: 工商管理 | E150: 105 | F150: 72 | G150: 177 | H150: 88.22 | I150: 89.68 | J150: 81.50 | K150: 88.24 | L150: 67.77 | M150: 是 | N150: 非全日制
A151: 149 | B151: 114142111640662 | C151: 成众宝 | D151: 工商管理 | E151: 114 | F151: 62 | G151: 176 | H151: 76.41 | I151: 84.18 | J151: 80.50 | K151: 78.56 | L151: 64.63 | M151: 是 | N151: 非全日制
A152: 150 | B152: 114142111640783 | C152: 程兵兵 | D152: 工商管理 | E152: 117 | F152: 59 | G152: 176 | H152: 82.89 | I152: 89.36 | J152: 87.50 | K152: 84.74 | L152: 66.49 | M152: 是 | N152: 非全日制
A153: 151 | B153: 114142111640476 | C153: 屈韵哲 | D153: 工商管理 | E153: 106 | F153: 70 | G153: 176 | H153: 80.43 | I153: 90.90 | J153: 81.50 | K153: 83.10 | L153: 66.00 | M153: 是 | N153: 非全日制
A154: 152 | B154: 114142111640675 | C154: 任小丽 | D154: 工商管理 | E154: 114 | F154: 62 | G154: 176 | H154: 82.09 | I154: 86.82 | J154: 80.50 | K154: 83.19 | L154: 66.02 | M154: 是 | N154: 非全日制
A155: 153 | B155: 114142141154568 | C155: 王允 | D155: 工商管理 | E155: 116 | F155: 60 | G155: 176 | H155: 85.89 | I155: 82.68 | J155: 81.00 | K155: 84.85 | L155: 66.52 | M155: 是 | N155: 全日制
A156: 154 | B156: 114142137013736 | C156: 张彩霞 | D156: 工商管理 | E156: 113 | F156: 63 | G156: 176 | H156: 86.20 | I156: 77.22 | J156: 80.00 | K156: 83.65 | L156: 66.16 | M156: 是 | N156: 全日制
A157: 155 | B157: 114142111640538 | C157: 张东宇 | D157: 工商管理 | E157: 121 | F157: 55 | G157: 176 | H157: 90.40 | I157: 83.24 | J157: 86.00 | K157: 88.39 | L157: 67.58 | M157: 是 | N157: 非全日制
A158: 156 | B158: 114142111640747 | C158: 张竞丹 | D158: 工商管理 | E158: 110 | F158: 66 | G158: 176 | H158: 83.76 | I158: 84.94 | J158: 87.50 | K158: 84.24 | L158: 66.34 | M158: 是 | N158: 全日制
A159: 157 | B159: 114142134013534 | C159: 周歆 | D159: 工商管理 | E159: 113 | F159: 63 | G159: 176 | H159: 84.50 | I159: 87.18 | J159: 80.50 | K159: 84.97 | L159: 66.56 | M159: 是 | N159: 全日制
A160: 158 | B160: 114142165035871 | C160: 巴音塔娜 | D160: 工商管理 | E160: 108 | F160: 67 | G160: 175 | H160: 0.00 | I160: 0.00 | J160: 0.00 | K160: 0.00 | L160: 40.83 | M160: 放弃复试 | N160: 全日制
A161: 159 | B161: 114142111640661 | C161: 毕梦如 | D161: 工商管理 | E161: 119 | F161: 56 | G161: 175 | H161: 82.80 | I161: 83.96 | J161: 88.00 | K161: 83.35 | L161: 65.84 | M161: 是 | N161: 全日制
A162: 160 | B162: 114142111640627 | C162: 郝慧慧 | D162: 工商管理 | E162: 121 | F162: 54 | G162: 175 | H162: 77.35 | I162: 70.74 | J162: 87.50 | K162: 76.21 | L162: 63.70 | M162: 是 | N162: 非全日制
A163: 161 | B163: 114142132443471 | C163: 胡浩渺 | D163: 工商管理 | E163: 118 | F163: 57 | G163: 175 | H163: 82.32 | I163: 79.60 | J163: 80.50 | K163: 81.55 | L163: 65.30 | M163: 是 | N163: 全日制
A164: 162 | B164: 114142111640770 | C164: 纪鲁彧 | D164: 工商管理 | E164: 111 | F164: 64 | G164: 175 | H164: 85.69 | I164: 88.33 | J164: 83.00 | K164: =H164*70%+I164*25%+J164*5% -> 86.22 | L164: =G164/300*100*70%+K164*30% -> 66.70 | M164: 是 | N164: 非全日制
A165: 163 | B165: 114142113092281 | C165: 黄晓宁 | D165: 工商管理 | E165: 118 | F165: 56 | G165: 174 | H165: 84.25 | I165: 79.91 | J165: 81.50 | K165: 83.03 | L165: 65.51 | M165: 是 | N165: 非全日制
A166: 164 | B166: 114142111640450 | C166: 李晨 | D166: 工商管理 | E166: 98 | F166: 76 | G166: 174 | H166: 84.01 | I166: 85.91 | J166: 81.50 | K166: 84.36 | L166: 65.91 | M166: 是 | N166: 非全日制
A167: 165 | B167: 114142111640904 | C167: 刘田宇 | D167: 工商管理 | E167: 115 | F167: 59 | G167: 174 | H167: 87.89 | I167: 79.60 | J167: 78.00 | K167: 85.33 | L167: 66.20 | M167: 是 | N167: 全日制
A168: 166 | B168: 114142111640979 | C168: 宋勇 | D168: 工商管理 | E168: 97 | F168: 77 | G168: 174 | H168: 84.25 | I168: 91.93 | J168: 87.50 | K168: 86.33 | L168: 66.50 | M168: 是 | N168: 非全日制
A169: 167 | B169: 114142134123593 | C169: 徐康 | D169: 工商管理 | E169: 107 | F169: 67 | G169: 174 | H169: 85.69 | I169: 78.63 | J169: 88.00 | K169: 84.04 | L169: 65.81 | M169: 是 | N169: 全日制
A170: 168 | B170: 114142111640579 | C170: 阎开 | D170: 工商管理 | E170: 113 | F170: 61 | G170: 174 | H170: 80.62 | I170: 81.38 | J170: 88.00 | K170: 81.18 | L170: 64.95 | M170: 是 | N170: 全日制
A171: 169 | B171: 114142111640780 | C171: 黄天相 | D171: 工商管理 | E171: 114 | F171: 59 | G171: 173 | H171: 85.21 | I171: 88.33 | J171: 90.00 | K171: 86.23 | L171: 66.24 | M171: 是 | N171: 非全日制
A172: 170 | B172: 114142165055928 | C172: 王宏达 | D172: 工商管理 | E172: 112 | F172: 61 | G172: 173 | H172: 82.56 | I172: 80.08 | J172: 84.50 | K172: 82.04 | L172: 64.98 | M172: 是 | N172: 全日制
A173: 171 | B173: 114142141074490 | C173: 王瑞红 | D173: 工商管理 | E173: 114 | F173: 59 | G173: 173 | H173: 84.73 | I173: 77.66 | J173: 90.50 | K173: 83.25 | L173: 65.34 | M173: 是 | N173: 全日制
A174: 172 | B174: 114142112041961 | C174: 薛晨炯 | D174: 工商管理 | E174: 121 | F174: 52 | G174: 173 | H174: 82.08 | I174: 67.46 | J174: 79.50 | K174: 78.30 | L174: 63.86 | M174: 是 | N174: 全日制
A175: 173 | B175: 114142111640547 | C175: 杨灵玉 | D175: 工商管理 | E175: 116 | F175: 57 | G175: 173 | H175: 85.69 | I175: 72.32 | J175: 80.00 | K175: 82.06 | L175: 64.99 | M175: 是 | N175: 全日制
A176: 174 | B176: 114142111640629 | C176: 陈琬昱 | D176: 工商管理 | E176: 120 | F176: 52 | G176: 172 | H176: 80.35 | I176: 77.66 | J176: 86.50 | K176: 79.99 | L176: 64.13 | M176: 是 | N176: 非全日制
A177: 175 | B177: 114142134243606 | C177: 陈兴林 | D177: 工商管理 | E177: 109 | F177: 63 | G177: 172 | H177: 85.29 | I177: 72.18 | J177: 78.50 | K177: 81.68 | L177: 64.64 | M177: 是 | N177: 全日制
A178: 176 | B178: 114142111640932 | C178: 何凤灵 | D178: 工商管理 | E178: 107 | F178: 65 | G178: 172 | H178: 83.36 | I178: 83.74 | J178: 82.00 | K178: 83.39 | L178: 65.15 | M178: 是 | N178: 非全日制
A179: 177 | B179: 114142111640755 | C179: 李星泽 | D179: 工商管理 | E179: 113 | F179: 59 | G179: 172 | H179: 89.55 | I179: 85.23 | J179: 88.00 | K179: 88.39 | L179: 66.65 | M179: 是 | N179: 非全日制
A180: 178 | B180: 114142143195033 | C180: 龙娜 | D180: 工商管理 | E180: 102 | F180: 70 | G180: 172 | H180: 85.29 | I180: 85.07 | J180: 82.00 | K180: 85.07 | L180: 65.66 | M180: 是 | N180: 全日制
A181: 179 | B181: 114142111640458 | C181: 孙郁 | D181: 工商管理 | E181: 100 | F181: 72 | G181: 172 | H181: 87.34 | I181: 82.38 | J181: 78.00 | K181: 85.63 | L181: 65.82 | M181: 是 | N181: 非全日制
A182: 180 | B182: 114142142374963 | C182: 吴奇 | D182: 工商管理 | E182: 117 | F182: 55 | G182: 172 | H182: 70.55 | I182: 80.82 | J182: 89.50 | K182: 74.07 | L182: 62.35 | M182: 是 | N182: 全日制
A183: 181 | B183: 114142111640849 | C183: 杨英姿 | D183: 工商管理 | E183: 125 | F183: 47 | G183: 172 | H183: 81.30 | I183: 64.77 | J183: 80.50 | K183: 77.13 | L183: 63.27 | M183: 是 | N183: 全日制
A184: 182 | B184: 114142141084501 | C184: 毕以龙 | D184: 工商管理 | E184: 111 | F184: 60 | G184: 171 | H184: 86.89 | I184: 84.94 | J184: 88.00 | K184: 86.46 | L184: 65.84 | M184: 是 | N184: 全日制
A185: 183 | B185: 114142111640423 | C185: 李雨航 | D185: 工商管理 | E185: 114 | F185: 57 | G185: 171 | H185: 90.44 | I185: 93.76 | J185: 89.50 | K185: 91.23 | L185: 67.27 | M185: 是 | N185: 非全日制
A186: 184 | B186: 114142111640945 | C186: 刘媛 | D186: 工商管理 | E186: 117 | F186: 54 | G186: 171 | H186: 80.17 | I186: 81.30 | J186: 87.50 | K186: 80.82 | L186: 64.15 | M186: 是 | N186: 非全日制
A187: 185 | B187: 114142131173383 | C187: 裴雪雷 | D187: 工商管理 | E187: 120 | F187: 51 | G187: 171 | H187: 89.11 | I187: 78.14 | J187: 78.50 | K187: 85.84 | L187: 65.65 | M187: 是 | N187: 全日制
A188: 186 | B188: 114142111640613 | C188: 杨春雨 | D188: 工商管理 | E188: 122 | F188: 49 | G188: 171 | H188: 77.06 | I188: 78.21 | J188: 87.50 | K188: 77.87 | L188: 63.26 | M188: 是 | N188: 非全日制
A189: 187 | B189: 114142111640854 | C189: 李德莎 | D189: 工商管理 | E189: 115 | F189: 55 | G189: 170 | H189: 83.75 | I189: 86.82 | J189: 85.00 | K189: 84.58 | L189: 65.04 | M189: 是 | N189: 非全日制
A190: 188 | B190: 114142111640752 | C190: 连晓莲 | D190: 工商管理 | E190: 97 | F190: 73 | G190: 170 | H190: 72.11 | I190: 93.45 | J190: 78.00 | K190: 77.74 | L190: 62.99 | M190: 是 | N190: 非全日制
A191: 189 | B191: 114142111640561 | C191: 刘韦 | D191: 工商管理 | E191: 113 | F191: 57 | G191: 170 | H191: 77.11 | I191: 65.37 | J191: 87.50 | K191: 74.69 | L191: 62.07 | M191: 是 | N191: 非全日制
A192: 190 | B192: 114142113022073 | C192: 吕超 | D192: 工商管理 | E192: 116 | F192: 54 | G192: 170 | H192: 83.89 | I192: 79.77 | J192: 88.00 | K192: 83.06 | L192: 64.59 | M192: 是 | N192: 全日制
A193: 191 | B193: 114142113282492 | C193: 史建巍 | D193: 工商管理 | E193: 113 | F193: 57 | G193: 170 | H193: 87.92 | I193: 92.76 | J193: 81.50 | K193: 88.81 | L193: 66.31 | M193: 是 | N193: 非全日制
A194: 192 | B194: 114142112041947 | C194: 宋金蕾 | D194: 工商管理 | E194: 117 | F194: 53 | G194: 170 | H194: 82.08 | I194: 70.38 | J194: 87.50 | K194: 79.42 | L194: 63.49 | M194: 是 | N194: 非全日制
A195: 193 | B195: 114142111640912 | C195: 王楷 | D195: 工商管理 | E195: 107 | F195: 63 | G195: 170 | H195: 91.02 | I195: 92.80 | J195: 84.50 | K195: 91.14 | L195: 67.01 | M195: 是 | N195: 非全日制
A196: 194 | B196: 114142137084146 | C196: 王倩 | D196: 工商管理 | E196: 119 | F196: 51 | G196: 170 | H196: 84.25 | I196: 73.73 | J196: 81.50 | K196: 81.48 | L196: 64.11 | M196: 是 | N196: 全日制
